fUSD/lending_fUSD_20260415
["ID","MTS","AMOUNT","RATE_DAILY","PERIOD"]
[420516069,1776207040202,-272.62944185,0.00013909,2]
[420516070,1776207040219,-500.0,0.00013909,2]
[420516071,1776207040228,-282.71673119,0.00013909,2]
[420516072,1776207040250,-500.0,0.00013909,2]
[420516073,1776207040263,-293.17725025,0.00013909,2]
[420516074,1776207040273,-500.0,0.00013909,2]
[420516075,1776207040289,-304.02480851,0.00013909,2]
[420516076,1776207040302,-500.0,0.00013909,2]
[420516077,1776207040313,-500.0,0.00013909,2]
[420516078,1776207040322,-500.0,0.00013909,2]
[420516079,1776207040334,-500.0,0.00013909,2]
[420516080,1776207040350,-500.0,0.00013909,2]
[420516081,1776207040361,-500.0,0.00013909,2]
[420516082,1776207040370,-300.23240325,0.00013909,2]
[420516083,1776207040380,-500.0,0.00013964,2]
[420516084,1776207040393,-151.0,0.00013964,2]
[420516085,1776207040402,-1528.0,0.00013973,2]
[420516086,1776207040411,-500.0,0.00014019,2]
[420516087,1776207040426,-151.0,0.00014019,2]
[420516088,1776207040438,-844.16522056,0.00014059,2]
[420516089,1776207040448,-1956.99613273,0.00014065,2]
[420516090,1776207040458,-500.0,0.00014074,2]
[420516091,1776207040470,-151.0,0.00014074,2]
[420516092,1776207040481,-160.0,0.00014095,2]
[420516093,1776207040491,-500.0,0.00014129,2]
[420516094,1776207040502,-151.0,0.00014129,2]
[420516095,1776207040511,-167.91632956,0.00014133,2]
[420516096,1776207040521,-1000.0,0.00014138,2]
[420516097,1776207040532,-500.0,0.00014184,2]
[420516098,1776207040542,-151.0,0.00014184,2]
[420516099,1776207040554,-190.7768,0.000142,2]
[420516100,1776207040567,-500.0,0.00014239,2]
[420516101,1776207040577,-151.0,0.00014239,2]
[420516102,1776207040586,-1528.0,0.00014247,2]
[420516103,1776207040597,-1956.99613273,0.00014254,2]
[420516104,1776207040613,-500.0,0.00014294,2]
[420516105,1776207040622,-151.0,0.00014294,2]
[420516106,1776207040635,-1000.0,0.00014326,2]
[420516107,1776207040653,-500.0,0.00014349,2]
[420516108,1776207040663,-151.0,0.00014349,2]
[420516109,1776207040689,-500.0,0.00014404,2]
[420516110,1776207040700,-151.0,0.00014404,2]
[420516111,1776207040716,-150.0,0.00014424,2]
[420516112,1776207040743,-150.0,0.00014442,2]
[420516113,1776207040771,-1956.99613273,0.00014444,2]
[420516114,1776207040787,-1481.23780761,0.00014457,2]
[420516117,1776207040813,-771.01748645,0.00014457,2]
[420516120,1776207040836,-200.0,0.00014457,2]
[420516121,1776207040856,-181.08010149,0.00014457,2]
[420516124,1776207040880,-500.0,0.00014459,2]
[420516126,1776207040903,-151.0,0.00014459,2]
[420516127,1776207040924,-1976.39652943,0.00014473,2]
[420516130,1776207040947,-4198.24685605,0.00014473,2]
[420516132,1776207040966,-397.25763086,0.00014473,2]
[420516133,1776207040986,-1528.0,0.00014521,2]
[420516134,1776207041005,-1142.0,0.00014552,5]
[420516135,1776207041028,-914.0,0.00014552,5]
[420516136,1776207041052,-1000.0,0.0001457,2]
[420516137,1776207041071,-150.0,0.00014577,2]
[420516138,1776207041103,-1800.0,0.00014582,2]
[420516139,1776207041140,-1100.0,0.00014582,2]
[420516140,1776207041224,-250.0,0.00014605,2]
[420516141,1776207041339,-2000.0,0.00014605,2]
[420516142,1776207041428,-500.0,0.00014629,2]
[420516143,1776207041455,-500.0,0.00014629,2]
[420516144,1776207041482,-300.0,0.00014629,2]
[420516145,1776207041499,-150.0,0.00014629,2]
[420516146,1776207041511,-500.0,0.00014629,2]
[420516147,1776207041538,-150.0,0.00014629,2]
[420516148,1776207041552,-500.0,0.00014629,2]
[420516149,1776207041582,-150.0,0.00014629,2]
[420516150,1776207041596,-217.90466446,0.00014629,2]
[420516151,1776207041621,-253.28980494,0.00014629,2]
[420516152,1776207041637,-500.0,0.00014629,2]
[420516153,1776207041647,-500.0,0.00014629,2]
[420516154,1776207041675,-150.0,0.00014629,2]
[420516155,1776207041687,-250.0,0.00014629,2]
[420516156,1776207041707,-150.0,0.00014629,2]
[420516157,1776207041718,-150.0,0.00014629,2]
[420516158,1776207041730,-150.0,0.00014629,2]
[420516159,1776207041742,-150.0,0.00014629,2]
[420516160,1776207041755,-500.0,0.00014629,2]
[420516161,1776207041766,-500.0,0.00014629,2]
[420516162,1776207041775,-500.0,0.00014629,2]
[420516163,1776207041786,-500.0,0.00014629,2]
[420516164,1776207041799,-165.47425874,0.00014629,2]
[420516165,1776207041808,-192.64,0.00014629,2]
[420516166,1776207041817,-500.0,0.00014629,2]
[420516167,1776207041836,-500.0,0.00014629,2]
[420516168,1776207042427,-500.0,0.00014629,2]
[420516169,1776207042442,-500.0,0.00014629,2]
[420516170,1776207042476,-281.31001433,0.00014629,2]
[420516171,1776207042503,-500.0,0.00014629,2]
[420516172,1776207042535,-150.0,0.00014629,2]
[420516173,1776207042571,-500.0,0.00014629,2]
[420516174,1776207042664,-254.86309859,0.00014629,2]
[420516175,1776207042795,-500.0,0.00014629,2]
[420516176,1776207042950,-331.72020812,0.00014629,2]
[420516177,1776207043087,-500.0,0.00014629,2]
[420516178,1776207043195,-500.0,0.00014629,2]
[420516179,1776207043336,-500.0,0.00014629,2]
[420516180,1776207043462,-500.0,0.00014629,2]
[420516181,1776207043586,-500.0,0.00014629,2]
[420516182,1776207043714,-500.0,0.00014629,2]
[420516183,1776207043807,-500.0,0.00014629,2]
[420516184,1776207043830,-500.0,0.00014629,2]
[420516185,1776207043843,-504.95063802,0.00014629,2]
[420516186,1776207043856,-150.0,0.00014629,2]
[420516187,1776207043877,-150.0,0.00014629,2]
[420516188,1776207043893,-500.0,0.00014629,2]
[420516189,1776207043912,-150.0,0.00014629,2]
[420516190,1776207043934,-500.0,0.00014629,2]
[420516191,1776207043950,-156.37567058,0.00014629,2]
[420516192,1776207043966,-500.0,0.00014629,2]
[420516193,1776207043984,-350.0,0.00014629,2]
[420516194,1776207043997,-150.0,0.00014629,2]
[420516195,1776207044019,-150.0,0.00014629,2]
[420516196,1776207044029,-150.0,0.00014629,2]
[420516197,1776207044042,-1956.99613273,0.00014633,2]
[420516198,1776207044061,-1000.0,0.00014635,2]
[420516199,1776207044075,-159.70389811,0.00014646,2]
[420516200,1776207044085,-150.0,0.00014647,2]
[420516201,1776207044103,-1528.0,0.00014795,2]
[420516202,1776207044114,-1956.99613273,0.00014822,2]
[420516203,1776207044128,-1000.0,0.00014866,2]
[420516204,1776207044146,-1000.0,0.00014893,2]
[420516205,1776207044158,-192.64,0.00014903,2]
[420516206,1776207044180,-150.0,0.00014904,2]
[420516207,1776207044193,-150.0,0.0001497,2]
[420516208,1776207044206,-276.06018683,0.00014984,2]
[420516209,1776207044230,-471.69241019,0.00014994,2]
[420516210,1776207044242,-200.0,0.00015005,2]
[420516211,1776207044265,-187.78006525,0.00015005,2]
[420516212,1776207044277,-171.1501673,0.00015007,2]
[420516213,1776207044289,-1956.99613273,0.00015011,2]
[420516214,1776207044307,-1000.0,0.00015045,2]
[420516215,1776207044321,-1528.0,0.00015068,2]
[420516216,1776207044331,-500.0,0.0001507,2]
[420516217,1776207044358,-150.0,0.00015085,2]
[420516218,1776207044370,-500.0,0.00015099,2]
[420516219,1776207044387,-500.0,0.00015099,2]
[420516220,1776207044415,-500.0,0.00015099,2]
[420516222,1776207044438,-500.0,0.00015099,2]
[420516224,1776207044470,-500.0,0.00015099,2]
[420516226,1776207044515,-500.0,0.00015099,2]
[420516227,1776207044607,-500.0,0.00015099,2]
[420516229,1776207044719,-500.0,0.00015099,2]
[420516231,1776207044782,-500.0,0.00015099,2]
[420516234,1776207044870,-500.0,0.00015099,2]
[420516237,1776207044953,-2000.0,0.000151,2]
[420516239,1776207045049,-155.0,0.00015106,2]
[420516241,1776207045119,-934.8973255,0.00015107,2]
[420516242,1776207045139,-892.8244922,0.00015107,2]
[420516243,1776207045162,-192951.9605793,0.00015107,2]
[420516244,1776207045182,-151.0,0.00015107,2]
[420516245,1776207045199,-151.0,0.00015107,2]
[420516246,1776207045221,-151.0,0.00015107,2]
[420516247,1776207045235,-151.0,0.00015107,2]
[420516248,1776207045254,-142267.5448969,0.00015107,2]
[420516249,1776207045274,-1903.1430935,0.00015107,2]
[420516250,1776207045286,-151.0,0.00015107,2]
[420516251,1776207045303,-151.0,0.00015107,2]
[420516252,1776207045317,-29218.6900462,0.00015107,2]
[420516253,1776207045327,-151.0,0.00015107,2]
[420516254,1776207045342,-3472.7072328,0.00015107,2]
[420516255,1776207045359,-151.0,0.00015107,2]
[420516256,1776207045369,-151.0,0.00015107,2]
[420516257,1776207045381,-151.0,0.00015107,2]
[420516258,1776207045399,-153.044374,0.00015107,2]
[420516259,1776207045412,-153.044374,0.00015107,2]
[420516260,1776207045422,-153.044374,0.00015107,2]
[420516261,1776207045433,-153.044374,0.00015107,2]
[420516262,1776207045446,-151.0,0.00015107,2]
[420516263,1776207045457,-164.8799,0.0001517,2]
[420516264,1776207045467,-500.0,0.00015173,2]
[420516265,1776207045480,-500.0,0.00015173,2]
[420516266,1776207045490,-500.0,0.00015173,2]
[420516267,1776207045503,-500.0,0.00015173,2]
[420516268,1776207045514,-500.0,0.00015173,2]
[420516269,1776207045527,-355.51213446,0.00015173,2]
[420516270,1776207045539,-500.0,0.00015173,2]
[420516271,1776207045553,-500.0,0.00015173,2]
[420516272,1776207045566,-500.0,0.00015173,2]
[420516273,1776207045593,-500.0,0.00015173,2]
[420516276,1776207045613,-500.0,0.00015173,2]
[420516280,1776207045654,-500.0,0.00015173,2]
[420516282,1776207045710,-500.0,0.00015173,2]
[420516284,1776207045796,-192.65,0.00015177,2]
[420516286,1776207045929,-500.0,0.00015178,2]
[420516288,1776207046036,-200.0,0.00015178,2]
[420516291,1776207046111,-1000.0,0.00015195,2]
[420516293,1776207046156,-151.0,0.00015197,2]
[420516295,1776207046216,-200.0,0.000152,2]
[420516297,1776207046319,-213.25638625,0.000152,2]
[420516298,1776207046501,-5963.5793,0.000152,2]
[420516301,1776207046676,-200.0,0.000152,2]
[420516302,1776207046749,-2000.0,0.000152,2]
[420516304,1776207046767,-500.0,0.000152,2]
[420516305,1776207046794,-1956.99613273,0.000152,2]
[420516306,1776207046809,-283.89130182,0.000152,2]
[420516307,1776207046825,-357.7309062,0.000152,2]
[420516308,1776207046840,-409.43987422,0.000152,2]
[420516309,1776207046853,-200.0,0.000152,2]
[420516310,1776207046864,-185.72821302,0.000152,2]
[420516312,1776207046876,-327.0,0.000152,3]
[420516314,1776207046888,-150.0,0.000152,3]
[420516315,1776207046899,-1000.0,0.00015225,2]
[420516316,1776207046909,-300.0,0.00015233,2]
[420516317,1776207046923,-300.0,0.00015233,2]
[420516318,1776207046933,-199.98,0.00015233,2]
[420516319,1776207046946,-203.18725147,0.00015248,2]
[420516320,1776207046957,-1586.73894287,0.0001525,2]
[420516321,1776207046971,-1529.0,0.0001525,2]
[420516322,1776207046984,-1000.0,0.0001526,2]
[420516323,1776207046996,-1000.0,0.00015263,2]
[420516324,1776207047011,-500.0,0.00015273,2]
[420516325,1776207047030,-500.27274026,0.00015273,2]
[420516326,1776207047044,-500.0,0.00015273,2]
[420516327,1776207047056,-500.0,0.00015273,2]
[420516328,1776207047067,-500.0,0.00015273,2]
[420516329,1776207047080,-502.08828386,0.00015273,2]
[420516330,1776207047090,-500.0,0.00015273,2]
[420516331,1776207047103,-500.0,0.00015273,2]
[420516332,1776207047117,-500.0,0.00015273,2]
[420516333,1776207047133,-372.0,0.00015276,2]
[420516334,1776207047147,-151.0,0.00015299,2]
[420516335,1776207047162,-151.0,0.00015299,2]
[420516336,1776207047177,-151.0,0.00015299,2]
[420516337,1776207047195,-151.0,0.00015299,2]
[420516338,1776207047207,-1254500.24577635,0.000153,2]
[420516339,1776207047240,-3385.22502415,0.000153,2]
[420516340,1776207047428,-293.44989864,0.00013831,2]
[420516341,1776207047438,-3306.55010136,0.000153,2]
[420516342,1776207047494,-1902.07,0.000153,2]
[420516343,1776207047507,-350.33533698,0.000153,2]
[420516344,1776207047647,-27326.58278638,0.000153,2]
[420516345,1776207047679,-408.63278698,0.000153,2]
[420516346,1776207047694,-430.4257349,0.000153,2]
[420516347,1776207047719,-892.18335078,0.000153,2]
[420516348,1776207047733,-5186.96950047,0.000153,2]
[420516349,1776207047774,-519.56113632,0.000153,2]
[420516350,1776207047790,-6633.13592568,0.000153,2]
[420516351,1776207048395,-3783.16635805,0.00013897,2]
[420516352,1776207048407,-2243.83364195,0.00013897,2]
[420516353,1776207048423,-731.04838134,0.000152,2]
[420516354,1776207048433,-8748.76221135,0.000153,2]
[420516355,1776207048462,-94321.69425441,0.000153,2]
[420516356,1776207048476,-972.59568653,0.000153,2]
[420516357,1776207051177,-10638.90682346,0.000153,2]
[420516358,1776207051193,-999.0,0.000153,2]
[420516359,1776207051264,-5452.50000408,0.000153,2]
[420516360,1776207051275,-382.94399198,0.000153,2]
[420516361,1776207051293,-338.89006486,0.000153,2]
[420516362,1776207051305,-5093.87220326,0.000153,2]
[420516363,1776207051318,-571.82945458,0.000153,2]
[420516364,1776207064386,7379.1,0.000165,30]
[420516387,1776208234338,-327.7651,0.00010698,2]
[420516388,1776208234352,-150.0,0.00010698,2]
[420516389,1776208234361,-208.26460576,0.00010698,2]
[420516390,1776208234387,-91.73539424,0.00010698,2]
[420516391,1776208234400,-667.73474421,0.00010698,2]
[420516392,1776208234455,-532.26525579,0.00010698,2]
[420516393,1776208234476,-500.0,0.00010699,2]
[420516394,1776208234507,-450.75818443,0.00010699,2]
[420516395,1776208234577,-49.24181557,0.00010699,2]
[420516396,1776208234628,-500.0,0.00010699,2]
[420516397,1776208234659,-149.75818443,0.00010699,2]
[420516398,1776208234758,-350.24181557,0.00010699,2]
[420516399,1776208234778,-500.0,0.00010699,2]
[420516400,1776208234809,-500.0,0.00010699,2]
[420516401,1776208234820,-500.0,0.00010699,2]
[420516402,1776208234838,-500.0,0.00010699,2]
[420516403,1776208234853,-500.0,0.00010699,2]
[420516404,1776208234862,-500.0,0.00010699,2]
[420516405,1776208234880,-500.0,0.00010699,2]
[420516406,1776208234892,-500.0,0.00010699,2]
[420516407,1776208234901,-530.13986033,0.00010699,2]
[420516408,1776208234910,-500.0,0.00010699,2]
[420516409,1776208234923,-500.0,0.00010699,2]
[420516410,1776208234935,-500.0,0.00010699,2]
[420516411,1776208234944,-500.0,0.00010699,2]
[420516412,1776208234953,-500.0,0.00010699,2]
[420516413,1776208234962,-500.0,0.00010699,2]
[420516414,1776208234974,-384.54734141,0.00010699,2]
[420516415,1776208234993,-115.45265859,0.00010699,2]
[420516416,1776208235002,-144.57982872,0.00010699,2]
[420516417,1776208235013,-355.42017128,0.00010699,2]
[420516418,1776208235023,-500.0,0.00010699,2]
[420516419,1776208235036,-500.0,0.00010699,2]
[420516420,1776208235045,-500.0,0.00010699,2]
[420516421,1776208235055,-500.0,0.00010699,2]
[420516422,1776208235064,-150.0,0.00010699,2]
[420516423,1776208235075,-500.0,0.00010699,2]
[420516424,1776208235085,-500.0,0.00010699,2]
[420516425,1776208235095,-500.0,0.00010699,2]
[420516426,1776208235104,-500.0,0.00010699,2]
[420516427,1776208235114,-500.0,0.00010699,2]
[420516428,1776208235123,-249.99999999,0.00010699,2]
[420516429,1776208235133,-500.0,0.00010699,2]
[420516430,1776208235142,-500.0,0.00010699,2]
[420516431,1776208235151,-500.0,0.00010699,2]
[420516432,1776208235160,-500.0,0.00010699,2]
[420516433,1776208235170,-500.0,0.00010699,2]
[420516434,1776208235179,-500.0,0.00010699,2]
[420516435,1776208235188,-500.0,0.00010699,2]
[420516436,1776208235198,-296016.50760947,0.000107,2]
[420516437,1776208235207,-500.0,0.0001092,2]
[420516438,1776208235216,-1168.89142185,0.00011133,2]
[420516439,1776208235226,-163.8825,0.00011233,2]
[420516440,1776208235235,-1168.89142185,0.00011585,2]
[420516441,1776208235245,-227.0,0.00011736,2]
[420516442,1776208235254,-500.0,0.00011767,2]
[420516443,1776208235263,-380.91651972,0.00011767,2]
[420516444,1776208235272,-500.0,0.00011767,2]
[420516445,1776208235281,-402.10450791,0.00011767,2]
[420516446,1776208235290,-5000.0,0.00011768,2]
[420516447,1776208235299,-284.17989899,0.00011768,2]
[420516448,1776208235308,-1680.0,0.00011768,2]
[420516449,1776208235317,-1168.89142185,0.00012037,2]
[420516450,1776208235327,-1168.89142185,0.00012489,2]
[420516451,1776208235336,-150.0,0.000126,2]
[420516452,1776208235347,-1168.89142185,0.00012941,2]
[420516453,1776208235357,-1277.0,0.00012945,2]
[420516454,1776208235366,-500.0,0.00012992,3]
[420516455,1776208235376,-250.0,0.00013,2]
[420516456,1776208235385,-150.0,0.00013,2]
[420516457,1776208235394,-10543.12,0.00013311,2]
[420516458,1776208235403,-1168.89142185,0.00013392,2]
[420516459,1776208235413,-1600.0,0.00013465,2]
[420516460,1776208235424,-2000.0,0.00013479,2]
[420516461,1776208235433,-507.0,0.000135,2]
[420516462,1776208235443,-1236.8,0.00013506,2]
[420516463,1776208235452,-9480.01,0.00013548,2]
[420516464,1776208235462,-411.13359062,0.00013644,2]
[420516465,1776208235472,-500.0,0.00013698,2]
[420516466,1776208235481,-500.0,0.00013698,2]
[420516467,1776208235491,-500.0,0.00013698,2]
[420516468,1776208235504,-500.0,0.00013698,2]
[420516469,1776208235514,-500.0,0.00013698,2]
[420516470,1776208235523,-500.0,0.00013698,2]
[420516471,1776208235535,-500.0,0.00013698,2]
[420516472,1776208235546,-500.0,0.00013698,2]
[420516473,1776208235556,-500.0,0.00013698,2]
[420516474,1776208235565,-500.0,0.00013698,2]
[420516475,1776208235580,-500.0,0.00013698,2]
[420516476,1776208235591,-500.0,0.00013698,2]
[420516477,1776208235601,-500.0,0.00013698,2]
[420516478,1776208235613,-500.0,0.00013698,2]
[420516479,1776208235626,-537.0,0.00013699,2]
[420516480,1776208235638,-166.66,0.00013699,2]
[420516481,1776208235647,-648.86,0.00013699,2]
[420516482,1776208235658,-1528.0,0.00013699,2]
[420516483,1776208235678,-190.7577,0.000138,2]
[420516484,1776208235688,-1168.89142185,0.00013844,2]
[420516485,1776208235709,-1500.0,0.00013892,2]
[420516486,1776208235723,-150.072,0.00013897,2]
[420516487,1776208235734,-622.0,0.00013907,2]
[420516488,1776208235757,-1047.0,0.00013907,2]
[420516489,1776208235771,-1264.0,0.00013907,2]
[420516490,1776208235782,-1218.0,0.00013907,2]
[420516491,1776208235799,-926.0,0.00013907,2]
[420516492,1776208235814,-6027.0,0.00013907,2]
[420516493,1776208235825,-416.0,0.00013907,2]
[420516494,1776208235843,-166.66,0.00013943,2]
[420516495,1776208235854,-1528.0,0.00013973,2]
[420516496,1776208235869,-200.506913,0.00014,2]
[420516497,1776208235885,-578.20924308,0.00014152,2]
[420516498,1776208235905,-721.12765535,0.00014152,2]
[420516499,1776208235915,-200.49011962,0.00014152,2]
[420516500,1776208235934,-151.0,0.00014152,2]
[420516501,1776208235960,-235.75327194,0.00014152,2]
[420516502,1776208235977,-244.476143,0.00014152,2]
[420516503,1776208235999,-253.52176029,0.00014152,2]
[420516504,1776208236010,-359.04735231,0.00014152,2]
[420516505,1776208236023,-174.61919141,0.00014152,2]
[420516506,1776208236047,-160.0,0.00014181,2]
[420516507,1776208236058,-166.66,0.00014187,2]
[420516508,1776208236086,-151.0,0.00014207,2]
[420516509,1776208236098,-1528.0,0.00014247,2]
[420516510,1776208236117,-151.0,0.00014262,2]
[420516511,1776208236136,-1168.89142185,0.00014296,2]
[420516512,1776208236158,-648.86,0.00014384,2]
[420516513,1776208236574,-166.66,0.00014431,2]
[420516514,1776208236605,-500.0,0.00014472,2]
[420516515,1776208236614,-1528.0,0.00014521,2]
[420516516,1776208236623,-1000.0,0.00014582,2]
[420516517,1776208236632,-1700.0,0.00014582,2]
[420516518,1776208236640,-150.00000001,0.00014629,2]
[420516519,1776208236649,-500.0,0.00014629,2]
[420516520,1776208236658,-500.0,0.00014629,2]
[420516521,1776208236667,-500.0,0.00014629,2]
[420516522,1776208236676,-364.6535985,0.00014629,2]
[420516523,1776208236685,-500.0,0.00014629,2]
[420516524,1776208236693,-500.0,0.00014629,2]
[420516525,1776208236703,-500.0,0.00014629,2]
[420516526,1776208236712,-500.0,0.00014629,2]
[420516527,1776208236721,-500.0,0.00014629,2]
[420516528,1776208236730,-622.00388739,0.00014629,2]
[420516529,1776208236739,-500.0,0.00014629,2]
[420516530,1776208236748,-500.0,0.00014629,2]
[420516531,1776208236757,-602.65944319,0.00014629,2]
[420516532,1776208236766,-150.0,0.00014629,2]
[420516533,1776208236775,-231.67345303,0.00014664,2]
[420516534,1776208236784,-166.66,0.00014675,2]
[420516535,1776208236794,-201.18883773,0.000147,2]
[420516536,1776208236803,-160.0,0.00014707,7]
[420516537,1776208236812,-218.295229,0.00014707,7]
[420516538,1776208236822,-276.590459,0.00014707,7]
[420516539,1776208236831,-1168.89142185,0.00014748,2]
[420516540,1776208236841,-1528.0,0.00014795,2]
[420516541,1776208236851,-5000.0,0.00014868,2]
[420516542,1776208236860,-397.47878466,0.00014873,2]
[420516543,1776208236870,-291.133111,0.00014896,7]
[420516544,1776208236879,-230.327767,0.00014896,7]
[420516545,1776208236888,-166.66,0.00014919,2]
[420516546,1776208236898,-30447.74892077,0.00014922,2]
[420516547,1776208236907,-176.92,0.00014952,2]
[420516548,1776208236917,-500.0,0.00014968,2]
[420516549,1776208236928,-959.0,0.00014968,5]
[420516550,1776208236939,-770.0,0.00014968,5]
[420516551,1776208236948,-250.0,0.00014968,2]
[420516552,1776208236958,-500.0,0.00014973,2]
[420516553,1776208236971,-500.0,0.00014973,2]
[420516554,1776208236983,-500.0,0.00014973,2]
[420516555,1776208236992,-500.0,0.00014973,2]
[420516556,1776208237001,-500.0,0.00014973,2]
[420516557,1776208237014,-500.0,0.00014973,2]
[420516558,1776208237029,-500.0,0.00014973,2]
[420516559,1776208237038,-500.0,0.00014973,2]
[420516560,1776208237050,-500.0,0.00014973,2]
[420516561,1776208237066,-500.0,0.00014973,2]
[420516562,1776208237076,-500.0,0.00014973,2]
[420516563,1776208237087,-500.0,0.00014973,2]
[420516564,1776208237109,-504.47655978,0.00014973,2]
[420516565,1776208237122,-507.0,0.00014978,3]
[420516566,1776208237138,-1208.443,0.00014984,2]
[420516567,1776208237162,-314.46160679,0.00014994,2]
[420516568,1776208237183,-210.357223,0.00014994,7]
[420516569,1776208237248,-225.848717,0.00014994,7]
[420516570,1776208237310,-300.0,0.00015,2]
[420516571,1776208237342,-242.5902,0.00015,2]
[420516572,1776208237358,-325.892722,0.00015007,2]
[420516573,1776208237381,-325.892722,0.00015007,2]
[420516574,1776208237402,-325.892722,0.00015007,2]
[420516575,1776208237418,-325.892722,0.00015007,2]
[420516576,1776208237441,-3041.7505,0.00015007,2]
[420516577,1776208237459,-1000.0,0.00015007,2]
[420516578,1776208237477,-168.0,0.00015023,2]
[420516579,1776208237493,-1528.0,0.00015068,2]
[420516580,1776208237510,-648.86,0.00015068,2]
[420516581,1776208237526,-151.0,0.00015068,2]
[420516582,1776208237545,-151.0,0.00015068,2]
[420516583,1776208237557,-500.0,0.00015073,2]
[420516584,1776208237584,-500.0,0.00015073,2]
[420516585,1776208237594,-500.0,0.00015073,2]
[420516586,1776208237617,-168.0,0.00015077,2]
[420516587,1776208237634,-246.96258362,0.00015106,2]
[420516588,1776208237652,-1600.0,0.00015149,2]
[420516589,1776208237672,-168.0,0.00015164,2]
[420516590,1776208237682,-164.7785,0.0001517,2]
[420516591,1776208237693,-500.0,0.00015178,2]
[420516592,1776208237712,-168.0,0.0001518,2]
[420516593,1776208237724,-10000.0,0.000152,2]
[420516594,1776208237735,-8948.59610448,0.000152,2]
[420516595,1776208237751,-1168.89142185,0.000152,2]
[420516596,1776208237765,-272.95991614,0.000152,2]
[420516597,1776208237776,-413.40017261,0.000152,2]
[420516598,1776208237791,-300.0,0.00015233,2]
[420516599,1776208237804,-300.0,0.00015233,2]
[420516600,1776208237813,-200.01,0.00015233,2]
[420516601,1776208237827,-5499.6368997,0.00015293,2]
[420516602,1776208237836,-6264.5737914,0.00015293,2]
[420516603,1776208237846,-92811.14699814,0.000153,2]
[420516604,1776208237860,-72548.3764235,0.000153,2]
[420516605,1776208237874,-42812.80194694,0.000153,2]
[420516606,1776208237887,-18631.1052792,0.000153,2]
[420516607,1776208237899,-643.82857995,0.000153,2]
[420516608,1776208237911,-437.436765,0.000153,2]
[420516609,1776208237924,-353.5,0.000153,2]
[420516610,1776208237952,-361.85356594,0.000153,2]
[420516611,1776208237963,-6142.37891665,0.000153,2]
[420516612,1776208239281,-178.678511,0.00014994,7]
[420516613,1776208239293,-164633.57521651,0.000153,2]
[420516614,1776208239304,-296.40318032,0.000153,2]
[420516618,1776208240412,-209.64107119,0.00014994,2]
[420516619,1776208240443,-132.46692881,0.000153,2]
[420516620,1776208240491,-462.52965099,0.000153,2]
[420516621,1776208240898,-405.26152993,0.00013907,2]
[420516622,1776208240997,-2067.73847007,0.00013907,2]
[420516623,1776208241017,-1797.04923346,0.000153,2]
[420516625,1776208241031,-997.91895596,0.000153,2]
[420516629,1776208241083,-6099.19392088,0.000153,2]
[420516631,1776208241124,-410.98500005,0.000153,2]
[420516632,1776208241318,-1108.13607521,0.000153,2]
[420516681,1776208243141,-500.0,0.00011767,2]
[420516682,1776208243158,-209.64107119,0.00014994,2]
[420516683,1776208243172,-228.06847956,0.000153,2]
[420516685,1776208243185,-603.0,0.000153,2]
[420516686,1776208243206,-979.16666667,0.000153,2]
[420516687,1776208243259,-3365.6344495,0.000153,2]